Cogmind - Beta 11.2 @@@ ROGUE MODE // 2023.01.22 @ 20:21:27 Player: Lyra Result: Destroyed by 8R-AWN with 8R-AWN's Boregun Performance ------------- Evolutions (0) 0 Regions Visited (3) 600 Robots Destroyed (23) 115 Value Destroyed (513) 513 Prototype IDs (6) 120 Alien Tech Used (0) 0 Bonus (-40) -40 TOTAL SCORE: 1308 Bonus ------- Friendly Fire -40 Cogmind --------- Core Integrity 0/250 Matter 185/300 Energy 99/100 System Corruption 4% Temperature Warm (125) Movement Core (50) Location -10/Exiles Parts ------- > --- POWER (1) -------- (None) > --- PROPULSION (2) --- (None) > --- UTILITY (2) ------ (None) > --- WEAPON (2) ------- (None) > --- INVENTORY (5) ---- Improved Heat Sink Advanced Beam Cannon Advanced Beam Cannon Peak State ------------ > --- POWER ------------ Ion Engine > --- PROPULSION ------- Aluminum Leg Carbon-fiber Leg > --- UTILITY ---------- Improved Heat Sink Small Storage Unit > --- WEAPON ----------- Advanced Beam Cannon Advanced Beam Cannon > --- INVENTORY -------- Aluminum Leg Improved Heat Sink Decoy Drone Bay Advanced Beam Cannon Advanced Beam Cannon Grenade Launcher Grenade Launcher [Rating: 17] Favorites ----------- Power Ion Engine Engine Ion Engine Propulsion Aluminum Leg Leg Aluminum Leg Utility Small Storage Unit Device Improved Heat Sink Storage Small Storage Unit Processor Targeting Computer Weapon Advanced Beam Cannon Energy Gun EM Pulse Gun Energy Cannon Advanced Beam Cannon Ballistic Cannon Light Cannon Launcher Grenade Launcher Build | -11 -10 -10 -10 ------- Run | Scr Mat Min Exi Slots Evolved . | . . . . Power . | . . . . Propulsion . | . . . . Utility . | . . . . Weapon . | . . . . Parts Attached 32 | 6 15 4 7 Power 3 | 1 1 1 . Engine 3 | 1 1 1 . Core . | . . . . Reactor . | . . . . Propulsion 8 | 2 4 1 1 Treads . | . . . . Leg 8 | 2 4 1 1 Wheel . | . . . . Hover . | . . . . Flight . | . . . . Utility 8 | 1 3 2 2 Device 4 | . 2 2 . Storage 3 | 1 . . 2 Processor 1 | . 1 . . Hackware . | . . . . Protection . | . . . . Artifact . | . . . . Weapon 13 | 2 7 . 4 Energy Gun 5 | 2 3 . . Energy Cannon 4 | . 2 . 2 Ballistic Gun . | . . . . Ballistic Cannon 2 | . 2 . . Launcher 2 | . . . 2 Special Weapon . | . . . . Impact Weapon . | . . . . Slashing Weapon . | . . . . Piercing Weapon . | . . . . Special Melee Weapon . | . . . . Unidentified Prototypes 1 | . 1 . . Corrupted Parts 1 | . 1 . . System Corruption 3 | . 3 . . Parts Lost 8 | . 1 . 7 Power . | . . . . Propulsion 3 | . . . 3 Utility 1 | . . . 1 Weapon 4 | . 1 . 3 Highest Loss Streak 7 | . 1 . 7 To Critical Strikes . | . . . . Average Slot Usage (%) 94 | . 94 100 80 Engine 13 | . 13 14 14 Leg 27 | . 27 28 25 Device 11 | . 8 14 13 Storage 14 | . 14 14 14 Energy Gun 7 | . 16 . . Energy Cannon 14 | . 5 28 10 Ballistic Cannon 2 | . 4 . . Naked Turns 1 | . . . 1 Heaviest Build 19 | 14 19 19 19 Greatest Support 25 | 20 20 25 25 Greatest Overweight (x) 3 | 3 1 . . Average Overweight (x) . | . . . . Largest Inventory Capacity 8 | 8 8 8 8 Average Capacity 7 | 7 8 8 7 Most Carried 8 | 6 8 8 8 Average Carried 7 | 3 7 7 7 Final Capacity 8 | 8 8 8 5 Final Carried 8 | 5 8 8 3 Class Distribution -------------------- 100% | Mutant Dominant Class ---------------- Mutant | -10/Materials Mutant | -10/Mines Mutant | -10/Exiles Resources | -11 -10 -10 -10 ----------- Run | Scr Mat Min Exi Matter Collected 500 | 260 122 118 . Remotely . | . . . . Salvage Created 962 | 157 489 198 118 Parts 55 | 9 25 7 14 Haulers Intercepted 2 | . 2 . . Recyclers Shooed 2 | 1 . 1 . Parts Field Recycled . | . . . . Retrieved Matter . | . . . . Parts Self-Destructed . | . . . . Prevented . | . . . . Kills | -11 -10 -10 -10 ------- Run | Scr Mat Min Exi Combat Hostiles Destroyed 20 | . 9 4 7 Guns 6 | . 6 . . Cannons 5 | . . 4 1 AOE 7 | . 1 . 6 Classes Destroyed 7 | 2 4 . 1 Tunneler 4 | 4 . . . Hauler 2 | . 2 . . Recycler 1 | 1 . . . Watcher 2 | . 2 . . Swarmer 3 | . 3 . . Grunt 10 | . 6 4 . Assembled 7 | . . . 7 Best Kill Streak 8 | 5 3 2 8 Combat Bots Only 7 | . 3 2 7 Max Kills in Single Turn 4 | 1 1 1 4 Gunslinging . | . . . . Exploded 4 | . 1 . 4 Melee . | . . . . Uniques/NPCs Destroyed 1 | . . . 1 EX-HEX (-10/Exiles) Combat | -11 -10 -10 -10 -------- Run | Scr Mat Min Exi Damage Taken 1285 | . 233 93 959 Core 251 | . 39 15 197 Absorbed by Shields . | . . . . Core Remaining (%) 100 | 100 . . . Volleys Fired 63 | 10 33 8 12 Largest 2 | 2 2 2 2 Hottest 136 | 80 80 136 136 Shots Fired 126 | 20 67 17 22 Gun 74 | 20 54 . . Cannon 45 | . 13 17 15 Launcher 7 | . . . 7 Special . | . . . . Kinetic 12 | . 12 . . Thermal 33 | . 1 17 15 Explosive 7 | . . . 7 Electromagnetic 74 | 20 54 . . Robot Hit Streak 12 | 5 12 7 9 Robot Miss Streak 6 | 3 6 2 1 Penetration Max . | . . . . Secondary Targets . | . . . . Shots Hit Robots 68 | 11 35 10 12 Core Hits 50 | 5 18 5 22 Critical Kills . | . . . . Critical Parts Destroyed . | . . . . Critical Strikes 1 | . 1 . . Corrupt 1 | . 1 . . Melee Attacks . | . . . . Impact . | . . . . Slashing . | . . . . Piercing . | . . . . Sneak Attacks . | . . . . Combat Hostiles . | . . . . Follow-up Attacks . | . . . . Damage Inflicted 1719 | 180 690 228 621 Guns 607 | 149 458 . . Cannons 487 | . 73 210 204 Explosions 607 | 31 159 . 417 Melee . | . . . . Ramming 18 | . . 18 . Kinetic 73 | . 73 . . Thermal 604 | 31 159 210 204 Explosive 417 | . . . 417 Electromagnetic 607 | 149 458 . . Impact . | . . . . Slashing . | . . . . Piercing . | . . . . Highest Corruption 4 | . 4 4 4 Average Corruption 3 | . 3 4 4 Corruption Purged . | . . . . Corruption Blocked . | . . . . Effects 21 | . 7 7 7 Message Errors 6 | . 1 3 2 Matter Fused 3 | . 3 . . Energy Discharges 3 | . . 1 2 Data Loss (minor) 2 | . 1 1 . Data Loss (major) 2 | . 1 1 . Misfires 3 | . 1 1 1 Weapon Failures 2 | . . . 2 Overload Shots . | . . . . Overflow Damage 17 | . 10 . 7 Projectiles . | . . . . Explosions 17 | . 10 . 7 Melee . | . . . . Knockbacks 2 | . 1 1 . Impact 1 | . . 1 . Kinetic 1 | . 1 . . Secondary . | . . . . Self-Inflicted Damage 30 | . . . 30 Shots 1 | . . . 1 Rammed . | . . . . Targets Rammed 3 | . . 3 . Kicked 3 | . . 3 . Crushed . | . . . . Highest Temperature 211 | 180 144 211 160 Average Temperature 63 | 91 48 73 78 Received Heat Transfer 303 | . 129 54 120 Siege Activations . | . . . . Robots Corrupted 2 | . 2 . . Combat Hostiles 2 | . 2 . . Parts Fried 2 | 1 1 . . Impact Corruptions . | . . . . Robots Melted . | . . . . Combat Hostiles . | . . . . Parts Melted 1 | . . . 1 Heat Transferred 940 | 50 150 370 370 Parts Sabotaged . | . . . . Parts Stolen . | . . . . Parts Stripped . | . . . . Power Chain Reactions 2 | 1 1 . . Missiles Intercepted . | . . . . Alert | -11 -10 -10 -10 ------- Run | Scr Mat Min Exi Peak Influence 310 | 25 310 170 . Initial 55 | . 16 55 . Average 125 | 8 166 99 . Maximum Alert Level 1 | . 1 . . Low Security (%) 82 | 100 66 100 . Level 1 17 | . 33 . . Level 2 . | . . . . Level 3 . | . . . . Level 4 . | . . . . Level 5 . | . . . . High Security . | . . . . Max Security . | . . . . Squads Dispatched 1 | . 1 . . Investigation 1 | . 1 . . Extermination . | . . . . Reinforcement . | . . . . Assault . | . . . . Garrison . | . . . . Intercept . | . . . . Searches Triggered . | . . . . Construction Impeded . | . . . . Haulers Reinforced . | . . . . Active Scanning Responses . | . . . . Cargo Convoy Interrupts . | . . . . Stealth | -11 -10 -10 -10 --------- Run | Scr Mat Min Exi Distress Signals . | . . . . Communications Jammed . | . . . . Distress Signals . | . . . . Times Spotted 27 | . 14 4 9 Peak Tracking Total 12 | . 3 2 12 Tactical Retreats 2 | . . . 2 Traps | -11 -10 -10 -10 ------- Run | Scr Mat Min Exi Traps Triggered 2 | . 2 . . Indirectly . | . . . . Trap Hack Attempts . | . . . . Triggered . | . . . . Disarmed . | . . . . Reprogrammed . | . . . . Reused . | . . . . Traps Extracted . | . . . . Installed . | . . . . Triggered . | . . . . Machines | -11 -10 -10 -10 ---------- Run | Scr Mat Min Exi Machines Disabled 5 | . 1 1 3 Max in Single Turn 2 | . 1 1 2 Machines Sabotaged . | . . . . Garrisons Compromised . | . . . . Overloaded Fab Kills . | . . . . Hacking | -11 -10 -10 -10 --------- Run | Scr Mat Min Exi Machines Accessed 6 | . 5 1 . Terminals 5 | . 5 . . Fabricators . | . . . . Repair Stations . | . . . . Recycling Units . | . . . . Scanalyzers . | . . . . Garrison Access . | . . . . Total Hacks 21 | . 20 1 . Successful 12 | . 11 1 . Failed 9 | . 9 . . Catastrophic . | . . . . Database Lockouts . | . . . . Manual 11 | . 11 . . Terminals 20 | . 20 . . Fabricators . | . . . . Repair Stations . | . . . . Recycling Units . | . . . . Scanalyzers . | . . . . Garrison Access . | . . . . Terminal Hacks 12 | . 11 1 . Robot Analysis 4 | . 4 . . Prototype ID Bank 6 | . 6 . . Open Door 1 | . . 1 . Registered Components 1 | . 1 . . Fabricator Hacks . | . . . . Repair Station Hacks . | . . . . Recycling Unit Hacks . | . . . . Scanalyzer . | . . . . Garrison Access Hacks . | . . . . Unauthorized Hacks . | . . . . Terminals . | . . . . Fabricators . | . . . . Repair Stations . | . . . . Recycling Units . | . . . . Scanalyzers . | . . . . Garrison Access . | . . . . Data Cores Recovered . | . . . . Used . | . . . . Hacking Detections 5 | . 5 . . Full Trace Events 1 | . 1 . . Feedback Events 1 | . 1 . . Corruption 1 | . 1 . . Feedback Blocked . | . . . . Robot Schematics Acquired . | . . . . Robots Built . | . . . . Authchips . | . . . . Time . | . . . . Total Robot Build Rating . | . . . . Part Schematics Acquired . | . . . . Parts Built . | . . . . Authchips . | . . . . Time . | . . . . Total Part Build Rating . | . . . . Parts Repaired . | . . . . Time . | . . . . Parts Recycled . | . . . . Recycled Matter . | . . . . Retrieved Matter . | . . . . Retrieved Components . | . . . . Parts Scanalyzed . | . . . . Part Schematics Acquired . | . . . . Parts Damaged . | . . . . Bothacking | -11 -10 -10 -10 ------------ Run | Scr Mat Min Exi Used RIF Installer . | . . . . Robots Hacked . | . . . . Non-combat . | . . . . Combat . | . . . . Robot Hacks Applied . | . . . . Relay Couplers Released . | . . . . Fabnet Peak Effective % . | . . . . Robots Rewired . | . . . . Allies Hacked . | . . . . Hacks Repelled . | . . . . Allies | -11 -10 -10 -10 -------- Run | Scr Mat Min Exi Total Allies . | . . . . Largest Group . | . . . . Highest-Rated Group . | . . . . Highest-Rated Ally . | . . . . Total Orders . | . . . . Ally Attacks . | . . . . Total Damage . | . . . . Kills . | . . . . Allies Corrupted . | . . . . Allies Melted . | . . . . Intel | -11 -10 -10 -10 ------- Run | Scr Mat Min Exi Robot Analysis Total 4 | . 4 . . Derelict Logs Recovered 3 | . . 3 . Drone Launches . | . . . . Drone Recoveries . | . . . . Exploration | -11 -10 -10 -10 ------------- Run | Scr Mat Min Exi Turns Passed 1337 | 107 581 460 189 Spaces Moved 862 | 50 358 339 115 Core 16 | 14 1 . 1 Treads . | . . . . Legs 846 | 36 357 339 114 Wheels . | . . . . Hover . | . . . . Flight . | . . . . Fastest Speed 50 | 50 100 120 50 Average Speed 120 | 118 120 120 119 Slowest Speed 200 | 200 190 120 120 Overloaded Moves . | . . . . Propulsion Burnouts . | . . . . Robots Hopped . | . . . . Cave-ins Triggered . | . . . . Exploration Rate (%) 38 | 4 57 62 30 Regions Visited 3 Branch Regions 2 Pre-discovered Areas 1 | . . 1 . Known Exits Taken . | . . . . Unknown Exits Taken 3 | 1 1 1 . Scrap Searched 1 | . . 1 . Spaces Dug . | . . . . Terrain Destroyed 32 | 3 2 . 27 Melee . | . . . . Projectile . | . . . . AOE 32 | 3 2 . 27 Terrain Rammed . | . . . . Walls Destroyed . | . . . . Machines Disabled . | . . . . Actions | -11 -10 -10 -10 --------- Run | Scr Mat Min Exi Total 1040 | 76 442 377 145 Wait 37 | 4 16 17 . Move 859 | 49 357 338 115 Hop . | . . . . Pick Up 21 | 7 8 2 4 Fast Attach 17 | 4 12 . 1 Attach 8 | 2 1 . 5 Detach 3 | . 1 . 2 Swap 7 | . 2 4 1 Drop 20 | . 12 5 3 Fire 63 | 10 33 8 12 Melee . | . . . . Ram . | . . . . Kick 3 | . . 3 . Crush . | . . . . Escape Stasis . | . . . . Rewire 2 | . . . 2 Trap . | . . . . Miscellaneous . | . . . . Route ------- -11/Scrapyard -10/Materials (discovered 2 exits: [*Mat] / *Min) -10/Mines -10/Exiles History --------- Turn | Location | Event 10 | -11/Scrapyard | Discovered new exit (range 15) 108 | -11/Scrapyard | Entered Materials 256 | -10/Materials | Discovered new exit (range 6) 355 | -10/Materials | Build established: Mutant 492 | -10/Materials | Discovered new exit (range 7) 689 | -10/Materials | Entered Mines 692 | -10/Mines | Met a Derelict bent on vengeance 704 | -10/Mines | Learned 4 Materials zone layouts 706 | -10/Mines | Learned Materials emergency access door positions 979 | -10/Mines | Deemed a non-threat by the Exiles lab entrance 979 | -10/Mines | Discovered new exit (range 5) 1012 | -10/Mines | Learned location of Zion (-7) 1025 | -10/Mines | Found the Drone Emporium 1034 | -10/Mines | Found Prototype Device 1149 | -10/Mines | Entered Exiles 1181 | -10/Exiles | Met 8R-AWN 1216 | -10/Exiles | Met EX-HEX 1299 | -10/Exiles | Attacked by the Exiles 1306 | -10/Exiles | Core integrity fell below 50% 1318 | -10/Exiles | Destroyed EX-HEX 1327 | -10/Exiles | Core integrity fell below 20% 1337 | -10/Exiles | Released all parts (3) 1338 | -10/Exiles | Destroyed by 8R-AWN with 8R-AWN's Boregun Last Messages --------------- 01326_ Knocked back. 01329_ Destroyed Asb. Hover Unit. 01329_ as-91135 destroyed. 01329_ as-32509 destroyed. 01334_ Penetrated by HV Slug. 01334_ Grenade Launcher destroyed. 01334_ HV Slug penetrates A-02 Transporter. 01334_ A-02 Transporter suffers critical hit (Destroy). 01334_ Penetrated by HV Slug. 01334_ HV Slug penetrates A-02 Transporter. 01334_ A-02 Transporter suffers critical hit (Destroy). 01336_ HV Slug penetrates Wall. 01336_ Penetrated by HV Slug. 01336_ HV Slug penetrates A-02 Transporter. 01337_ Released Ion Engine. 01337_ Released Sml. Storage Unit. 01337_ Released Grenade Launcher. 01337_ Attempting to rewire A-02 Transporter. 01337_ A-02 Transporter is unpowered. 01338_ Penetrated by HV Slug. Map ----- +----------------------------------------------------+ | ?????????????????????????????????????????????????? | | ?????????????????????????????????????????????????? | | ?????????????????????????????????????????????????? | | ?????????????????????????????????????????????????? | | ?????????????????????????????????????????????????? | | ?????????????????????????????????????????????????? | | ?????????????????????????????????????????????????? | | ?????????????????????????????????????????????????? | | ?????????????????????????????????????????????????? | | ?????????????????????????????????????????????????? | | ???????????????????????????????????????#""??"""?"? | | ???????????????????????????????????? " """ """" | | ?????????????????????????????????? "" " | | ???????????????????????????????? " "" | | ???????????????????????????????? " | | ??????????????????????????????? " | | ???????????????????????????????? | | ????????????????????????????????? | | ?????????????? ??????????????????? | | ????????????? ??????????????????""" | | ????????????? ?????????????????#""" | | ???????????? ???????????????? | | ???????????? ????######### | | ?????????? ####]!# | | ?????????? #;a=% g | | ?????????? a@! | | ?????????? z | | ?????????? | | ?????????? " | | ?????????? ! "" """ | | ?????????? !!!! "" " " ""#" | | ??????????? !!%*!""# ######""" """##"""" | | ??????????? !!""""#?### ????###""""####### | | ???????????? """???## ###???######?????? | | ???????????? ""#???#! "!#??????????????? | | ???????????? "???????#" !#??????????????? | | ????????????? ????????#" ! "#??????????????? | | ???????????????? ?????????#! ""!"#??????????????? | | ???????????????????????????########??????????????? | | ?????????????????????????????????????????????????? | | ?????????????????????????????????????????????????? | | ?????????????????????????????????????????????????? | | ?????????????????????????????????????????????????? | | ?????????????????????????????????????????????????? | | ?????????????????????????????????????????????????? | | ?????????????????????????????????????????????????? | | ?????????????????????????????????????????????????? | | ?????????????????????????????????????????????????? | | ?????????????????????????????????????????????????? | | ?????????????????????????????????????????????????? | +----------------------------------------------------+ Best States ------------- Heat Dissipation 39 Energy Generation 10 Energy Capacity 500 Matter Stores 300 Matter Capacity 300 Sight Range 16 Terrain Scan Density 10 Evasion (%) 55 Targeting Accuracy 5 Item Schematics ----------------- None Robot Schematics ------------------ None Fabricated ------------ Nothing Alien Tech Used ----------------- None Achievements -------------- None Challenges ------------ None Game ------ Seed ReactiveActuatorCalibrator Manual? 0 Play Time 00:15:27 Cumulative 24.5 hours Start 2023.01.22 @ 20:08:37 End 2023.01.22 @ 20:21:27 Sessions 1 Manual Loads 0 Difficulty Rogue Special Mode None Game No. 13 Rogue 13 Adventurer 0 Explorer 0 Win Type - Total 0 Types 0/0/0/0/0/0/0/0/0 Lore% 34 Gallery% 33 Achievement% 29 Wizard Run 0 Options --------- ASCII 0 Keyboard 0 Movement Numpad Keybinds 0 Fullscreen 1 Font 24/Terminus Map View 76x56 Tactical HUD 1 Map Filters NONE Filters NONE Steam 1 RUN: 47db35de-e377-47a1-82b6-6742f1cfeaa7